bitfinex/quotes_BTCUSD_20241223
["timestamp","ask_amount","ask_price","bid_price","bid_amount"]
[1734930248922,0.0823,95938.0,95925.0,0.208496]
[1734930249451,0.20847,95937.0,95924.0,0.0040856]
[1734930250192,0.0823,95938.0,95924.0,8.56e-05]
[1734930250193,0.208483,95931.0,95924.0,8.56e-05]
[1734930250369,0.0764,95925.0,95924.0,0.0050856]
[1734930250570,0.0764,95925.0,95924.0,8.56e-05]
[1734930250781,0.1777084,95925.0,95924.0,8.56e-05]
[1734930250955,0.1777084,95925.0,95924.0,0.0020856]
[1734930251159,0.1777084,95925.0,95924.0,8.56e-05]
[1734930251638,0.2276084,95925.0,95924.0,0.0070856]
[1734930252535,0.23835769,95925.0,95924.0,8.56e-05]
[1734930253357,0.13704929,95925.0,95924.0,8.56e-05]
[1734930253566,0.01174929,95925.0,95924.0,8.56e-05]
[1734930253765,0.15,95933.0,95924.0,0.0050856]
[1734930254162,0.208481,95932.0,95924.0,8.56e-05]
[1734930254518,0.002,95925.0,95924.0,8.56e-05]
[1734930254715,0.208485,95930.0,95924.0,8.56e-05]
[1734930255259,0.15,95933.0,95924.0,8.56e-05]
[1734930255458,0.30094976,95934.0,95924.0,8.56e-05]
[1734930255658,0.40225816,95934.0,95924.0,0.0010856]
[1734930255861,0.40225816,95934.0,95911.0,0.208526]
[1734930256073,0.40241891,95934.0,95910.0,0.1246458]
[1734930256271,0.40241891,95934.0,95912.0,0.208524]
[1734930256578,0.61089591,95934.0,95912.0,0.208524]
[1734930257418,0.208492,95927.0,95912.0,0.208524]
[1734930257824,0.40241891,95934.0,95919.0,0.208508]
[1734930258038,0.40541891,95934.0,95919.0,0.208508]
[1734930258352,0.40541891,95934.0,95913.0,0.208522]
[1734930258756,0.40241891,95934.0,95911.0,0.208526]
[1734930258956,0.208481,95932.0,95911.0,0.208526]
[1734930259450,0.208494,95927.0,95909.0,0.20853]
[1734930259656,0.208504,95922.0,95906.0,0.01183744]
[1734930259836,0.208504,95922.0,95907.0,0.208535]
[1734930260178,0.208516,95916.0,95897.0,0.208555]
[1734930260416,0.208516,95916.0,95896.0,0.0119015]
[1734930260653,0.208516,95916.0,95903.0,0.208542]
[1734930260853,0.2085,95923.0,95903.0,0.208542]
[1734930261698,0.0814,95917.0,95900.0,0.1246458]
[1734930261900,0.208515,95916.0,95898.0,0.208554]
[1734930262269,0.0814,95917.0,95904.0,0.208541]
[1734930262674,0.0794,95926.0,95907.0,0.1246458]
[1734930262877,0.22033526,95929.0,95907.0,0.1246458]
[1734930263368,0.01184726,95929.0,95917.0,0.208511]
[1734930263747,0.208482,95932.0,95917.0,0.208511]
[1734930264671,0.208482,95932.0,95916.0,0.208514]
[1734930265087,0.22007927,95932.0,95916.0,0.208514]
[1734930265441,0.22007927,95932.0,95914.0,0.208518]
[1734930265951,0.43056127,95932.0,95907.0,0.1246458]
[1734930266153,0.01359727,95932.0,95897.0,0.2086416]
[1734930266475,0.208516,95916.0,95897.0,0.2086416]
[1734930267030,0.208507,95920.0,95900.0,0.1246458]
[1734930267240,0.208502,95923.0,95908.0,0.208531]
[1734930267863,0.208502,95923.0,95900.0,0.1246458]
[1734930267864,0.208502,95923.0,95903.0,0.208542]
[1734930268222,0.208512,95918.0,95903.0,0.208542]
[1734930268594,0.208502,95922.0,95903.0,0.208542]
[1734930268791,0.208502,95922.0,95908.0,0.002]
[1734930269045,0.208487,95929.0,95915.0,0.208516]
[1734930269248,0.0752,95930.0,95915.0,0.208516]
[1734930271037,0.0752,95930.0,95910.0,0.3331718]
[1734930271610,0.0762,95930.0,95910.0,0.3331718]
[1734930271853,0.0752,95930.0,95910.0,0.3331718]
[1734930272258,0.0762,95930.0,95910.0,0.1246458]
[1734930272691,0.0762,95930.0,95916.0,0.208515]
[1734930272900,0.284686,95930.0,95916.0,0.208515]
[1734930273851,0.0762,95930.0,95916.0,0.208515]
[1734930274109,0.001,95930.0,95926.0,0.208492]
[1734930274284,0.255331,95955.0,95930.0,0.208483]
[1734930274489,0.01151448,95952.0,95930.0,0.208483]
[1734930274633,0.01151448,95952.0,95932.0,0.208481]
[1734930276171,0.20843,95956.0,95932.0,0.208481]
[1734930276516,0.00133195,95934.0,95932.0,0.216481]
[1734930277887,0.00033195,95934.0,95932.0,0.208481]
[1734930278094,0.00033195,95934.0,95932.0,0.216481]
[1734930278297,0.00133195,95934.0,95932.0,0.216481]
[1734930278526,0.00033195,95934.0,95926.0,0.01152261]
[1734930278725,0.00033195,95934.0,95932.0,0.009]
[1734930278726,0.00133195,95934.0,95932.0,0.009]
[1734930279258,0.00133195,95934.0,95932.0,0.217479]
[1734930279653,0.00033195,95934.0,95932.0,0.208479]
[1734930279809,0.00133195,95934.0,95932.0,0.215479]
[1734930280968,0.00133195,95934.0,95932.0,0.007]
[1734930281960,0.00033195,95934.0,95927.0,0.208491]
[1734930282162,0.00033195,95934.0,95932.0,0.007]
[1734930282338,0.00133195,95934.0,95932.0,0.007]
[1734930282539,0.00133195,95934.0,95927.0,0.208491]
[1734930282943,0.00233195,95934.0,95932.0,0.008]
[1734930283570,0.00033195,95934.0,95927.0,0.208491]
[1734930284988,0.00133195,95934.0,95927.0,0.216491]
[1734930285828,0.00133195,95934.0,95927.0,0.008]
[1734930286833,0.416958,95933.0,95927.0,0.008]
[1734930287045,0.5182664,95933.0,95927.0,0.008]
[1734930287245,0.15,95930.0,95927.0,0.008]
[1734930287474,0.1013084,95929.0,95927.0,0.008]
[1734930287876,0.3097954,95929.0,95927.0,0.008]
[1734930288070,0.3097954,95929.0,95910.0,8.56e-05]
[1734930288071,0.416978,95928.0,95910.0,8.56e-05]
[1734930288269,0.208506,95921.0,95910.0,8.56e-05]
[1734930289236,0.208506,95921.0,95910.0,0.1247314]
[1734930289437,0.1013084,95927.0,95910.0,8.56e-05]
[1734930289438,0.208517,95916.0,95910.0,8.56e-05]
[1734930289647,0.208517,95916.0,95910.0,0.0040856]
[1734930290928,0.20852,95914.0,95910.0,8.56e-05]
[1734930291377,0.20852,95914.0,95910.0,0.0020856]
[1734930291781,0.417041,95914.0,95910.0,8.56e-05]
[1734930292017,0.208524,95912.0,95910.0,0.0030856]
[1734930292222,0.2269084,95911.0,95910.0,0.0030856]
[1734930292423,0.4769084,95911.0,95910.0,0.0030856]
[1734930292774,0.4769084,95911.0,95910.0,8.56e-05]
[1734930293153,0.5769084,95911.0,95910.0,8.56e-05]
[1734930293357,0.5999084,95911.0,95910.0,8.56e-05]
[1734930293784,0.679954,95898.0,95875.0,0.00058106]
[1734930294130,0.7812624,95898.0,95875.0,0.00058106]
[1734930294262,0.8042624,95898.0,95875.0,0.00058106]
[1734930295340,0.8052624,95898.0,95875.0,0.00058106]
[1734930295921,0.0774,95888.0,95850.0,0.1246458]
[1734930296134,0.20861,95873.0,95850.0,0.12518235]
[1734930296742,0.20861,95873.0,95853.0,0.208652]
[1734930297905,0.208605,95875.0,95854.0,0.20865]
[1734930298107,0.15,95881.0,95854.0,0.20865]
[1734930298355,0.208607,95874.0,95854.0,0.20865]
[1734930298541,0.20862,95868.0,95854.0,0.20865]
[1734930298750,0.208635,95862.0,95853.0,0.003]
[1734930298988,0.20862,95868.0,95851.0,0.208657]
[1734930299125,0.20862,95868.0,95854.0,0.002]
[1734930300381,0.20862,95868.0,95851.0,0.208657]
[1734930300795,0.20962,95868.0,95854.0,0.005]
[1734930301771,0.001,95868.0,95858.0,0.1246458]
[1734930302603,0.001,95868.0,95859.0,0.208639]
[1734930303503,0.0774,95888.0,95858.0,0.1246458]
[1734930303776,0.1013084,95887.0,95870.0,0.1246458]
[1734930304136,0.1013084,95887.0,95870.0,0.208615]
[1734930304307,0.208581,95886.0,95870.0,0.208615]
[1734930304521,0.3098894,95886.0,95867.0,0.208621]
[1734930305345,0.3098894,95886.0,95867.0,0.417242]
[1734930306010,0.0824,95897.0,95860.0,0.1246458]
[1734930306315,0.0824,95897.0,95871.0,0.286512]
[1734930306316,0.1013084,95896.0,95871.0,0.286512]
[1734930306528,0.208561,95895.0,95871.0,0.286512]
[1734930306677,0.208565,95893.0,95871.0,0.495125]
[1734930306898,0.001,95887.0,95871.0,0.495125]
[1734930307276,0.1013084,95892.0,95863.0,0.20863]
[1734930307477,0.208589,95883.0,95863.0,0.20863]
[1734930307675,0.208589,95883.0,95868.0,0.208618]
[1734930308075,0.208589,95883.0,95870.0,0.1246458]
[1734930308350,0.208589,95883.0,95871.0,0.210613]
[1734930308555,0.20857,95891.0,95871.0,0.208613]
[1734930308692,0.1013084,95890.0,95871.0,0.417226]
[1734930308884,0.208574,95889.0,95871.0,0.417226]
[1734930309084,0.1013084,95888.0,95871.0,0.417226]
[1734930309487,0.208563,95895.0,95878.0,0.3332428]
[1734930310118,0.208563,95895.0,95878.0,0.208597]
[1734930310364,0.0001712,95886.0,95878.0,0.208597]
[1734930310964,0.0001712,95886.0,95877.0,0.208598]
[1734930311698,0.0001712,95886.0,95878.0,0.208597]
[1734930312149,0.208607,95874.0,95863.0,0.01106088]
[1734930312493,0.1818084,95885.0,95854.0,0.329649]
[1734930312701,0.208609,95873.0,95854.0,0.329649]
[1734930312912,0.208609,95873.0,95854.0,0.538299]
[1734930313579,0.208609,95873.0,95854.0,0.54984728]
[1734930313757,0.208585,95884.0,95861.0,0.208635]
[1734930313758,0.208603,95876.0,95861.0,0.208635]
[1734930313934,0.002,95873.0,95861.0,0.208635]
[1734930314349,0.208599,95878.0,95861.0,0.208635]
[1734930314560,0.208602,95876.0,95861.0,0.208635]
[1734930316261,0.208602,95876.0,95860.0,0.1246458]
[1734930316579,0.208602,95876.0,95857.0,0.208643]
[1734930316782,0.208602,95876.0,95861.0,0.002]
[1734930317179,0.208617,95870.0,95855.0,0.208648]
[1734930317500,0.208617,95870.0,95860.0,0.002]
[1734930317904,0.208617,95870.0,95855.0,0.208648]
[1734930318248,0.208617,95870.0,95861.0,0.002]
[1734930318548,0.208617,95870.0,95855.0,0.208648]
[1734930318746,0.0797,95869.0,95855.0,0.208648]
[1734930319501,0.208617,95870.0,95855.0,0.208648]
[1734930319700,0.1013084,95869.0,95850.0,0.00053655]
[1734930320037,0.1013084,95869.0,95860.0,0.004]
[1734930320232,0.208635,95862.0,95850.0,0.00053655]
[1734930320662,0.208635,95862.0,95855.0,0.004]
[1734930320802,0.208635,95862.0,95850.0,0.00053655]
[1734930321265,0.20862,95868.0,95850.0,0.00053655]
[1734930321463,0.1013084,95867.0,95853.0,0.2087366]
[1734930322148,0.208624,95866.0,95853.0,8.56e-05]
[1734930323237,0.1013084,95867.0,95853.0,8.56e-05]
[1734930323443,0.1013084,95867.0,95854.0,0.20865]
[1734930323444,0.208624,95866.0,95854.0,0.20865]
[1734930323665,0.0797,95896.0,95873.0,0.208607]
[1734930323865,0.0797,95896.0,95873.0,0.417216]
[1734930323866,0.288261,95896.0,95873.0,0.417216]
[1734930324064,0.17355022,95906.0,95875.0,0.208604]
[1734930324270,0.081,95906.0,95875.0,0.208604]
[1734930324500,0.20855,95900.0,95877.0,0.2086]
[1734930324733,0.081,95906.0,95877.0,0.2294919]
[1734930324985,0.09255022,95907.0,95877.0,0.2294919]
[1734930325144,0.09255022,95907.0,95877.0,0.3807003]
[1734930325363,0.208529,95910.0,95877.0,0.3807003]
[1734930325722,0.208541,95905.0,95877.0,0.3807003]
[1734930326965,0.0011712,95878.0,95877.0,0.3897003]
[1734930327387,0.0011712,95878.0,95877.0,0.4011207]
[1734930327767,0.0011712,95878.0,95877.0,0.5511207]
[1734930327974,0.0011712,95878.0,95877.0,0.5741207]
[1734930328179,0.0001712,95878.0,95877.0,0.5651207]
[1734930328379,0.0001712,95878.0,95877.0,0.59764772]
[1734930328580,0.0001712,95878.0,95877.0,0.5651207]
[1734930328858,0.0001712,95878.0,95877.0,0.77333124]
[1734930329639,0.0001712,95878.0,95877.0,0.77331366]
[1734930329925,0.0011712,95878.0,95877.0,0.78231366]
[1734930330302,0.0011712,95878.0,95877.0,0.88231366]
[1734930330455,2e-07,95878.0,95877.0,0.98231366]
[1734930330974,0.0110441,95921.0,95885.0,0.381583]
[1734930331180,0.0110441,95921.0,95885.0,0.4828914]
[1734930332235,0.0110441,95921.0,95885.0,0.48303688]
[1734930333562,0.0110441,95921.0,95885.0,0.48403688]
[1734930337765,0.2307,95929.0,95885.0,0.48403688]
[1734930337962,0.0807,95929.0,95885.0,0.56013688]
[1734930339262,0.0807,95929.0,95885.0,0.55913688]
[1734930341418,0.01116905,95923.0,95885.0,0.55913688]
[1734930342811,0.0771,95909.0,95885.0,0.55913688]
[1734930344900,0.0771,95909.0,95885.0,0.31003688]
[1734930346488,0.0771,95919.0,95885.0,0.33303688]
[1734930346689,0.0771,95919.0,95885.0,0.56103688]
[1734930347207,0.208512,95918.0,95885.0,0.56103688]
[1734930347702,0.208512,95918.0,95885.0,0.41103688]
[1734930348228,0.208512,95918.0,95885.0,0.31203688]
[1734930348436,0.208523,95913.0,95885.0,0.31203688]
[1734930349017,0.208512,95918.0,95885.0,0.31203688]
[1734930349424,0.0108768,95910.0,95885.0,0.31203688]
[1734930349634,0.0108768,95910.0,95885.0,0.31003688]
[1734930349807,0.0041712,95886.0,95885.0,0.31003688]
[1734930350221,0.0001712,95886.0,95885.0,0.31003688]
[1734930350402,0.0001712,95886.0,95885.0,0.31303688]
[1734930350813,0.0001712,95886.0,95885.0,0.31003688]
[1734930351014,0.0041712,95886.0,95885.0,0.31103688]
[1734930351296,0.0041712,95886.0,95885.0,0.31003688]
[1734930351935,0.0041712,95886.0,95885.0,0.20872848]
[1734930353423,0.0041712,95886.0,95885.0,0.21172848]
[1734930353600,0.0001712,95886.0,95885.0,0.20872848]
[1734930354007,0.0001712,95886.0,95885.0,0.21772848]
[1734930360549,0.0001712,95886.0,95885.0,0.20872848]
[1734930360937,0.0001712,95886.0,95885.0,0.21772848]
[1734930362079,0.0001712,95886.0,95885.0,0.00914548]
[1734930363262,0.0001712,95886.0,95885.0,0.00014548]
[1734930363461,0.0001712,95886.0,95885.0,0.00914548]
[1734930363868,0.0786712,95886.0,95885.0,0.00914548]
[1734930364071,0.1236712,95886.0,95885.0,0.00914548]
[1734930364930,0.1236712,95886.0,95885.0,0.00014548]
[1734930365491,0.1207712,95886.0,95885.0,0.00014548]
[1734930366437,0.1207712,95886.0,95885.0,0.00514548]
[1734930366710,0.1207712,95886.0,95885.0,0.00014548]
[1734930367891,0.1207712,95886.0,95885.0,0.00214548]
[1734930368087,0.1207712,95886.0,95885.0,0.00014548]
[1734930369711,0.1207712,95886.0,95885.0,0.00514548]
[1734930370452,0.1207712,95886.0,95885.0,0.00014548]
[1734930370927,0.1207712,95886.0,95885.0,0.00514548]
[1734930371120,0.1207712,95886.0,95867.0,0.01106637]
[1734930371323,0.1209424,95886.0,95885.0,0.002]
[1734930372690,0.1209424,95886.0,95876.0,0.208602]
[1734930373503,0.12099595,95886.0,95885.0,0.003]
[1734930374118,0.12099595,95886.0,95876.0,0.208602]
[1734930374315,0.12099595,95886.0,95876.0,0.211602]
[1734930374617,0.12099595,95886.0,95876.0,0.208602]
[1734930375963,0.12099595,95886.0,95885.0,0.003]
[1734930376188,0.12099595,95886.0,95876.0,0.208602]
[1734930376682,0.12099595,95886.0,95876.0,0.211602]
[1734930377008,0.12099595,95886.0,95876.0,0.208602]
[1734930377212,0.32957795,95886.0,95885.0,0.003]
[1734930377626,0.32957795,95886.0,95871.0,0.208611]
[1734930377849,0.32957795,95886.0,95876.0,0.003]
[1734930379229,0.32957795,95886.0,95871.0,0.208611]
[1734930379450,0.12099595,95886.0,95885.0,0.002]
[1734930379809,0.12099595,95886.0,95876.0,0.208602]
[1734930380206,0.07599595,95886.0,95876.0,0.208602]
[1734930380633,0.07599595,95886.0,95876.0,0.210602]
[1734930380836,0.07599595,95886.0,95876.0,0.208602]
[1734930382133,0.28457695,95886.0,95872.0,0.208611]
[1734930382322,0.28457695,95886.0,95876.0,0.003]
[1734930382522,0.28457695,95886.0,95872.0,0.208611]
[1734930382936,0.28457695,95886.0,95876.0,0.003]
[1734930383095,0.28457695,95886.0,95872.0,0.208611]
[1734930383512,0.07599595,95886.0,95876.0,0.003]
[1734930383717,0.07599595,95886.0,95877.0,0.2086]
[1734930384431,0.07599595,95886.0,95876.0,0.003]
[1734930384432,0.00022475,95886.0,95882.0,0.208587]
[1734930384661,0.00022475,95886.0,95884.0,0.208585]
[1734930384860,0.00022475,95886.0,95885.0,0.18075117]
[1734930385091,0.00022475,95886.0,95885.0,0.23025117]
[1734930385294,0.00022475,95886.0,95885.0,0.2292084]
[1734930386818,0.00122475,95886.0,95885.0,0.2372084]
[1734930387232,0.00022475,95886.0,95885.0,0.2292084]
[1734930387413,0.00722475,95886.0,95885.0,0.25109668]
[1734930389003,0.00722475,95886.0,95885.0,0.25009668]
[1734930389004,0.00022475,95886.0,95885.0,0.25009668]
[1734930389230,0.00722475,95886.0,95885.0,0.25109668]
[1734930389438,0.00722475,95886.0,95885.0,0.26225214]
[1734930389631,0.00722475,95886.0,95885.0,0.26125214]
[1734930389845,0.01422475,95886.0,95885.0,0.26225214]
[1734930390297,0.00722475,95886.0,95885.0,0.26125214]
[1734930390528,0.01422475,95886.0,95885.0,0.26225214]
[1734930390784,0.00022475,95886.0,95885.0,0.26125214]
[1734930391710,0.00022475,95886.0,95885.0,0.40162311]
[1734930392841,0.00722475,95886.0,95885.0,0.40262311]
[1734930393287,0.00022475,95886.0,95885.0,0.40162311]
[1734930393497,0.00722475,95886.0,95885.0,0.40262311]
[1734930393733,0.00722475,95886.0,95885.0,0.26125214]
[1734930394053,0.01422475,95886.0,95885.0,0.03304374]
[1734930394236,0.01422475,95886.0,95884.0,0.34895597]
[1734930394237,0.00022475,95886.0,95884.0,0.34895597]
[1734930394781,0.00722475,95886.0,95885.0,0.001]
[1734930394977,0.00722475,95886.0,95885.0,0.14137097]
[1734930396004,0.00722475,95886.0,95878.0,0.09360409]
[1734930396005,0.00022475,95886.0,95878.0,0.09360409]
[1734930396343,0.00722475,95886.0,95885.0,0.001]
[1734930396537,0.00022475,95886.0,95878.0,0.09360409]
[1734930396789,0.208583,95885.0,95878.0,0.09360409]
[1734930396947,0.208583,95885.0,95871.0,0.2086976]
[1734930397153,0.0767,95884.0,95879.0,0.208594]
[1734930399079,0.0767,95884.0,95873.0,0.208609]
[1734930399462,0.0767,95884.0,95873.0,0.417218]
[1734930399870,0.0777,95884.0,95879.0,0.004]
[1734930400097,0.0777,95884.0,95873.0,0.417218]
[1734930400302,0.0777,95884.0,95873.0,0.208609]
[1734930400519,0.0787,95884.0,95873.0,0.212609]
[1734930400728,0.208587,95883.0,95873.0,0.004]
[1734930400941,0.208587,95883.0,95871.0,8.56e-05]
[1734930401122,0.208587,95883.0,95879.0,0.004]
[1734930402507,0.208587,95883.0,95871.0,8.56e-05]
[1734930402707,0.208587,95883.0,95873.0,0.004]
[1734930402909,0.0767,95884.0,95873.0,0.004]
[1734930403105,0.0767,95884.0,95872.0,0.208611]
[1734930403305,0.0767,95884.0,95879.0,0.005]
[1734930403731,0.0767,95884.0,95871.0,8.56e-05]
[1734930403906,0.0767,95884.0,95873.0,0.005]
[1734930404391,0.0767,95884.0,95871.0,8.56e-05]
[1734930404992,0.208587,95883.0,95871.0,8.56e-05]
[1734930405195,0.0767,95884.0,95871.0,8.56e-05]
[1734930405196,0.08751073,95884.0,95871.0,8.56e-05]
[1734930405525,0.208604,95876.0,95871.0,8.56e-05]
[1734930405730,0.208594,95880.0,95871.0,8.56e-05]
[1734930405889,0.0455,95881.0,95871.0,8.56e-05]
[1734930406093,0.0455,95881.0,95871.0,0.0050856]
[1734930406614,0.0455,95881.0,95871.0,8.56e-05]
[1734930406774,0.0455,95881.0,95871.0,0.0040856]
[1734930407144,0.0455,95881.0,95871.0,8.56e-05]
[1734930407516,0.0455,95881.0,95873.0,0.208608]
[1734930407675,0.0455,95881.0,95871.0,0.0010856]
[1734930408519,0.254092,95881.0,95871.0,0.0010856]
[1734930408677,0.254092,95881.0,95871.0,8.56e-05]
[1734930408878,0.208594,95880.0,95871.0,8.56e-05]
[1734930409100,0.417188,95880.0,95871.0,8.56e-05]
[1734930409461,0.417188,95880.0,95871.0,0.0020856]
[1734930409762,0.417188,95880.0,95871.0,8.56e-05]
[1734930410174,0.0752,95878.0,95871.0,0.0030856]
[1734930410356,0.0752,95878.0,95871.0,8.56e-05]
[1734930410357,0.1013084,95877.0,95871.0,8.56e-05]
[1734930410796,0.1013084,95877.0,95871.0,0.0020856]
[1734930411758,0.208602,95876.0,95871.0,0.0020856]
[1734930412005,0.208602,95876.0,95871.0,8.56e-05]
[1734930412408,0.208602,95876.0,95871.0,0.0030856]
[1734930412633,0.208602,95876.0,95871.0,8.56e-05]
[1734930413524,0.3099104,95876.0,95871.0,0.0040856]
[1734930413734,0.5185134,95876.0,95871.0,0.0040856]
[1734930414197,0.208607,95874.0,95871.0,0.0040856]
[1734930414399,0.1013084,95873.0,95871.0,0.0040856]
[1734930415241,0.1013084,95873.0,95871.0,8.56e-05]
[1734930415466,0.208611,95872.0,95871.0,8.56e-05]
[1734930415682,0.6365194,95872.0,95871.0,8.56e-05]
[1734930415883,0.6835194,95872.0,95871.0,8.56e-05]
[1734930416440,0.8065194,95872.0,95871.0,8.56e-05]
[1734930416642,0.358646,95856.0,95855.0,8.56e-05]
[1734930416865,0.4599544,95856.0,95855.0,8.56e-05]
[1734930417463,0.5365544,95856.0,95855.0,8.56e-05]
[1734930417909,0.5365544,95856.0,95855.0,0.00062215]
[1734930418262,0.6365544,95856.0,95855.0,0.00062215]
[1734930418797,0.6595544,95856.0,95855.0,0.00062215]
[1734930418998,0.6605544,95856.0,95855.0,0.00062215]
[1734930419405,0.7605544,95856.0,95855.0,0.00062215]
[1734930419655,0.79248774,95856.0,95855.0,0.00062215]
[1734930420843,0.4993,95854.0,95853.0,8.56e-05]
[1734930421049,0.6006084,95854.0,95853.0,8.56e-05]
[1734930421837,0.458687,95837.0,95836.0,8.56e-05]
[1734930422052,0.6862954,95837.0,95836.0,0.00013921]
[1734930422488,0.2,95830.0,95829.0,4.551e-05]
[1734930422723,0.7605104,95830.0,95829.0,4.551e-05]
[1734930422920,0.636218,95823.0,95811.0,0.01088698]
[1734930423123,0.8093264,95823.0,95822.0,0.00013914]
[1734930423929,0.4509,95817.0,95801.0,8.55e-05]
[1734930424133,0.5522084,95817.0,95801.0,8.55e-05]
[1734930425443,0.5582084,95817.0,95801.0,8.55e-05]
[1734930426050,0.5522084,95817.0,95801.0,8.55e-05]
[1734930426452,0.5582084,95817.0,95801.0,8.55e-05]
[1734930428396,0.56322454,95817.0,95801.0,8.55e-05]
[1734930428622,0.46322454,95817.0,95801.0,8.55e-05]
[1734930428821,0.56922454,95817.0,95801.0,8.55e-05]
[1734930429019,0.56322454,95817.0,95801.0,8.55e-05]
[1734930429219,0.56922454,95817.0,95801.0,8.55e-05]
[1734930429402,0.34622454,95817.0,95801.0,8.55e-05]
[1734930429753,0.11232454,95817.0,95804.0,0.208758]
[1734930429962,0.11732454,95817.0,95804.0,0.208758]
[1734930430344,0.01601614,95817.0,95809.0,0.208746]
[1734930430770,0.005,95817.0,95816.0,0.2088185]
[1734930431509,0.01,95817.0,95816.0,0.2098185]
[1734930431729,0.005,95817.0,95816.0,0.2088185]
[1734930431957,0.01067182,95825.0,95824.0,0.208715]
[1734930432706,0.1013084,95840.0,95824.0,0.41743]
[1734930432898,0.3099914,95840.0,95824.0,0.208715]
[1734930433253,0.208694,95834.0,95817.0,0.208731]
[1734930433618,0.208694,95834.0,95816.0,8.55e-05]
[1734930433619,0.001,95825.0,95824.0,0.006]
[1734930434767,0.3100044,95833.0,95817.0,0.208731]
[1734930434943,0.1013084,95833.0,95816.0,8.55e-05]
[1734930435116,0.1013084,95833.0,95824.0,0.001]
[1734930435311,0.1013084,95833.0,95818.0,0.208729]
[1734930435719,0.001,95825.0,95824.0,0.005]
[1734930435943,0.208698,95832.0,95811.0,0.135914]
[1734930435944,0.3587,95831.0,95811.0,0.135914]
[1734930436120,0.208705,95829.0,95800.0,0.3832985]
[1734930436321,0.1013084,95828.0,95824.0,0.002]
[1734930436499,0.208709,95827.0,95824.0,0.002]
[1734930436703,0.208709,95827.0,95800.0,0.3832985]
[1734930436704,0.1013084,95826.0,95802.0,0.208763]
[1734930436929,0.208723,95821.0,95800.0,0.2586527]
[1734930437178,0.1,95829.0,95800.0,8.57e-05]
[1734930437179,0.208736,95815.0,95800.0,8.57e-05]
[1734930437350,0.1013084,95814.0,95800.0,8.57e-05]
[1734930438579,0.1013084,95814.0,95802.0,0.208763]
[1734930438786,0.208752,95808.0,95801.0,0.0050855]
[1734930439005,0.358763,95802.0,95801.0,0.0050855]
[1734930439209,0.4600714,95802.0,95801.0,0.0050855]
[1734930439410,0.4830714,95802.0,95801.0,8.55e-05]
[1734930440030,0.5830714,95802.0,95801.0,8.55e-05]
[1734930440236,0.58315513,95802.0,95801.0,8.55e-05]
[1734930441603,0.59383635,95802.0,95801.0,8.55e-05]
[1734930441825,0.59383635,95802.0,95801.0,0.0010855]
[1734930442148,0.59383635,95802.0,95801.0,8.55e-05]
[1734930443073,0.50083635,95802.0,95801.0,8.55e-05]
[1734930443274,0.49383635,95802.0,95801.0,8.55e-05]
[1734930444014,0.59383635,95802.0,95801.0,8.55e-05]
[1734930444215,0.69383635,95802.0,95801.0,8.55e-05]
[1734930444729,0.70083635,95802.0,95801.0,8.55e-05]
[1734930445081,0.69383635,95802.0,95801.0,8.55e-05]
[1734930445300,0.69683635,95802.0,95801.0,8.55e-05]
[1734930445455,0.1,95800.0,95799.0,8.56e-05]
[1734930445664,0.6600764,95800.0,95799.0,8.56e-05]
[1734930445859,0.6830764,95800.0,95799.0,8.56e-05]
[1734930447234,0.4600764,95800.0,95799.0,8.56e-05]
[1734930448171,0.4690764,95800.0,95799.0,8.56e-05]
[1734930448801,0.4750764,95800.0,95799.0,8.56e-05]
[1734930449004,0.4660764,95800.0,95799.0,8.56e-05]
[1734930449420,0.4710764,95800.0,95799.0,8.56e-05]
[1734930451028,0.208792,95789.0,95776.0,0.0456]
[1734930451231,0.1013084,95788.0,95776.0,0.0456]
[1734930451836,0.417593,95787.0,95776.0,0.0456]
[1734930452210,0.208815,95779.0,95764.0,0.0458]
[1734930452338,0.1013084,95778.0,95764.0,0.0458]
[1734930452770,0.208825,95774.0,95764.0,0.0458]
[1734930453172,0.41765,95774.0,95764.0,0.0458]
[1734930453535,0.208825,95774.0,95764.0,0.0458]
[1734930454569,0.208825,95774.0,95764.0,0.0488]
[1734930454779,0.208827,95773.0,95764.0,0.003]
[1734930454978,0.208827,95773.0,95755.0,0.208866]
[1734930455224,0.417655,95773.0,95764.0,0.001]
[1734930455546,0.417655,95773.0,95755.0,0.208866]
[1734930456064,0.208839,95768.0,95755.0,0.00012322]
[1734930457199,0.208851,95762.0,95755.0,0.00012322]
[1734930458427,0.208851,95762.0,95755.0,0.00412322]
[1734930458623,0.208864,95757.0,95755.0,0.00412322]
[1734930458873,0.208857,95759.0,95755.0,0.00012322]
[1734930459262,0.208857,95759.0,95755.0,0.00412322]
[1734930459463,0.208857,95759.0,95755.0,0.00012322]
[1734930460112,0.417714,95759.0,95755.0,0.00012322]
[1734930460263,0.208862,95757.0,95755.0,0.00012322]
[1734930460462,0.1013084,95756.0,95755.0,0.00012322]
[1734930461379,0.1013084,95756.0,95755.0,0.00312322]
[1734930461787,0.1013084,95756.0,95755.0,0.00012322]
[1734930461989,0.1013084,95756.0,95755.0,0.00312322]
[1734930465430,0.1013084,95756.0,95755.0,0.00320892]
[1734930466582,0.25,95737.0,95734.0,0.01067393]
[1734930466901,0.25,95737.0,95734.0,0.00053566]
[1734930467665,0.25,95737.0,95735.0,0.208908]
[1734930468451,0.251,95737.0,95735.0,0.208908]
[1734930468705,0.25,95737.0,95735.0,0.208908]
[1734930469091,0.251,95737.0,95735.0,0.209908]
[1734930470091,0.25,95737.0,95735.0,0.208908]
[1734930471310,0.25,95737.0,95736.0,0.1013084]
[1734930471507,0.25,95737.0,95736.0,0.23405283]
[1734930471722,0.25,95737.0,95736.0,0.3830084]
[1734930472079,0.251,95737.0,95736.0,0.3830084]
[1734930472637,0.252,95737.0,95736.0,0.3840084]
[1734930472858,0.25,95737.0,95736.0,0.3830084]
[1734930473175,0.251,95737.0,95736.0,0.3840084]
[1734930474839,0.251,95737.0,95736.0,0.3830084]
[1734930475059,0.25,95737.0,95736.0,0.3830084]
[1734930475256,0.256,95737.0,95736.0,0.3830084]
[1734930475869,0.262,95737.0,95736.0,0.3830084]
[1734930476731,0.262,95737.0,95736.0,0.41554804]
[1734930476902,0.262,95737.0,95736.0,0.3830084]
[1734930477307,0.262,95737.0,95736.0,0.3830941]
[1734930479603,0.262,95737.0,95736.0,0.41564643]
[1734930479885,0.262,95737.0,95736.0,0.41564605]
[1734930480287,0.262,95737.0,95736.0,0.3830941]